bitfinex/quotes_SOLUSD_20250728
["timestamp","ask_amount","ask_price","bid_price","bid_amount"]
[1753714020932,1e-08,187.5,187.49,66.74894925]
[1753714021134,39.34,187.58,187.54,16.78468397]
[1753714021351,39.34,187.6,187.57,16.78468397]
[1753714021540,10.45502435,187.65,187.59,27.23970832]
[1753714021748,39.34,187.64,187.59,27.23970832]
[1753714021961,39.34,187.64,187.55,16.78468397]
[1753714022162,0.68,187.69,187.63,16.78468397]
[1753714022367,10.45502435,187.66,187.63,16.78468397]
[1753714022563,39.34,187.65,187.62,10.45502435]
[1753714022741,10.45502435,187.68,187.63,16.78468397]
[1753714022936,4.22092955,187.7,187.64,10.45502435]
[1753714022937,20.00364784,187.7,187.64,10.45502435]
[1753714023169,0.68,187.71,187.63,16.78468397]
[1753714023170,39.34,187.69,187.63,22.11409736]
[1753714023354,10.45502435,187.72,187.67,16.78468397]
[1753714023545,0.68,187.73,187.67,16.78468397]
[1753714023546,39.34,187.71,187.67,27.23970832]
[1753714023762,49.79502435,187.71,187.66,10.45502435]
[1753714023956,49.79502435,187.71,187.66,16.78468397]
[1753714024145,0.68,187.7,187.66,10.45502435]
[1753714024353,39.34,187.71,187.68,10.45502435]
[1753714024555,39.34,187.71,187.65,16.78468397]
[1753714024757,50.47502435,187.71,187.65,10.45502435]
[1753714024937,5.3276505,187.7,187.65,10.45502435]
[1753714025143,5.3276505,187.7,187.63,16.78468397]
[1753714025144,10.45502435,187.68,187.63,16.78468397]
[1753714025394,15.78267485,187.7,187.65,10.45502435]
[1753714025571,5.32657874,187.74,187.67,10.45502435]
[1753714025869,39.34,187.73,187.71,16.78468397]
[1753714026374,39.34,187.73,187.65,16.78468397]
[1753714026565,39.34,187.74,187.71,16.78468397]
[1753714026865,39.34,187.74,187.73,16.78468397]
[1753714027274,45.3457149,187.77,187.73,16.78468397]
[1753714027447,40.02,187.77,187.73,16.78468397]
[1753714027771,39.34,187.77,187.75,16.78468397]
[1753714028271,13.3401257,187.83,187.75,16.78468397]
[1753714028272,10.45502435,187.81,187.75,16.78468397]
[1753714028448,39.34,187.81,187.77,27.23970832]
[1753714029076,40.02,187.81,187.77,16.78468397]
[1753714029258,40.02,187.81,187.77,27.23970832]
[1753714029457,40.02,187.81,187.77,16.78468397]
[1753714029648,45.34457178,187.81,187.77,16.78468397]
[1753714029973,39.34,187.81,187.77,27.23970832]
[1753714030170,39.34,187.81,187.79,16.78468397]
[1753714030386,39.34,187.81,187.77,10.45502435]
[1753714030871,39.34,187.81,187.8,10.45502435]
[1753714031185,0.03,187.83,187.81,16.78468397]
[1753714031541,0.03,187.83,187.8,16.78468397]
[1753714031774,0.03,187.83,187.81,10.45502435]
[1753714032447,3.87443222,187.83,187.8,10.45502435]
[1753714032850,0.68,187.82,187.75,16.78468397]
[1753714033067,3.84321824,187.81,187.79,16.78468397]
[1753714033369,3.84321824,187.8,187.79,27.23970832]
[1753714033674,44.67399334,187.83,187.77,16.78468397]
[1753714033675,10.45502435,187.82,187.77,16.78468397]
[1753714033864,0.68,187.8,187.77,16.78468397]
[1753714034179,3.84226393,187.79,187.77,27.23970832]
[1753714034480,45.35399334,187.83,187.77,27.23970832]
[1753714034779,7.68043241,187.82,187.81,10.45502435]
[1753714034962,3.84021507,187.82,187.81,10.45502435]
[1753714035294,11.13502435,187.82,187.77,10.45502435]
[1753714035473,10.45502435,187.8,187.76,16.78468397]
[1753714035781,4.51867015,187.79,187.75,16.78468397]
[1753714035999,10.45502435,187.78,187.75,16.78468397]
[1753714036162,10.45502435,187.76,187.69,10.45502435]
[1753714036359,10.45502435,187.73,187.67,10.45502435]
[1753714036789,10.45502435,187.73,187.68,27.23970832]
[1753714036998,10.45502435,187.74,187.7,16.78468397]
[1753714037377,39.3,187.75,187.72,10.45502435]
[1753714037598,44.62629869,187.75,187.71,10.45502435]
[1753714037910,0.68,187.74,187.72,16.78468397]
[1753714038070,11.13502435,187.73,187.69,16.78468397]
[1753714038401,0.68,187.72,187.69,16.78468397]
[1753714039382,15.78160027,187.74,187.69,16.78468397]
[1753714039578,10.45502435,187.76,187.7,10.45502435]
[1753714039887,39.3,187.76,187.72,10.45502435]
[1753714040086,39.3,187.76,187.71,10.45502435]
[1753714040471,39.98,187.76,187.71,10.45502435]
[1753714040684,10.45502435,187.74,187.7,16.78468397]
[1753714040903,11.13502435,187.73,187.7,16.78468397]
[1753714041082,11.13502435,187.73,187.68,16.78468397]
[1753714041281,0.68,187.72,187.68,16.78468397]
[1753714042929,10.45502435,187.75,187.7,16.78468397]
[1753714043075,11.13502435,187.74,187.69,10.45502435]
[1753714043282,0.68,187.73,187.7,16.78468397]
[1753714043803,5.32628798,187.75,187.66,16.78468397]
[1753714043804,10.45502435,187.71,187.66,16.78468397]
[1753714044106,11.13502435,187.7,187.66,16.78468397]
[1753714044269,0.68,187.74,187.68,27.23970832]
[1753714044472,39.3,187.73,187.68,10.45502435]
[1753714044701,39.98,187.73,187.68,10.45502435]
[1753714045078,39.98,187.73,187.7,16.78468397]
[1753714045274,45.3069009,187.73,187.68,10.45502435]
[1753714045594,0.68,187.72,187.67,10.45502435]
[1753714045798,0.68,187.71,187.68,16.78468397]
[1753714045985,0.68,187.7,187.68,16.78468397]
[1753714046181,0.68,187.7,187.66,10.45502435]
[1753714046182,10.45502435,187.7,187.66,16.78468397]
[1753714046397,0.68,187.69,187.66,16.78468397]
[1753714047019,0.68,187.72,187.66,27.23970832]
[1753714047204,5.32736668,187.71,187.66,27.23970832]
[1753714048001,11.13502435,187.7,187.65,16.78468397]
[1753714048200,0.68,187.69,187.65,16.78468397]
[1753714048400,10.45502435,187.69,187.64,16.78468397]
[1753714048610,0.68,187.68,187.64,16.78468397]
[1753714048810,10.45502435,187.68,187.64,16.78468397]
[1753714049007,10.45502435,187.68,187.63,10.45502435]
[1753714049008,11.13502435,187.67,187.63,16.78468397]
[1753714049319,5.32822299,187.68,187.63,27.23970832]
[1753714049888,0.68,187.67,187.63,27.23970832]
[1753714050191,0.68,187.67,187.63,10.45502435]
[1753714051017,39.28,187.69,187.66,16.78468397]
[1753714051396,44.60801113,187.69,187.66,16.78468397]
[1753714052502,44.60801113,187.69,187.65,16.78468397]
[1753714053203,0.7,187.68,187.65,16.78468397]
[1753714053613,0.7,187.67,187.61,6.3951]
[1753714053928,0.7,187.67,187.62,27.23970832]
[1753714054097,10.45502435,187.65,187.61,16.78468397]
[1753714054300,0.7,187.64,187.61,16.78468397]
[1753714054820,0.7,187.64,187.6,16.78468397]
[1753714055026,0.7,187.63,187.59,16.78468397]
[1753714055214,10.45502435,187.61,187.59,16.78468397]
[1753714055410,11.15502435,187.6,187.55,16.78468397]
[1753714055926,0.7,187.59,187.55,16.78468397]
[1753714056100,39.28,187.61,187.57,27.23970832]
[1753714056422,55.06438443,187.64,187.59,27.23970832]
[1753714056595,39.28,187.64,187.6,10.45502435]
[1753714056796,0.7,187.65,187.59,16.78468397]
[1753714056797,0.7,187.65,187.61,10.45502435]
[1753714057026,55.76377127,187.67,187.61,10.45502435]
[1753714057512,39.98,187.67,187.63,10.45502435]
[1753714057802,0.7,187.66,187.63,16.78468397]
[1753714058013,55.06355325,187.67,187.61,10.45502435]
[1753714058218,0.7,187.65,187.61,10.45502435]
[1753714058418,0.7,187.64,187.62,16.78468397]
[1753714058794,11.15502435,187.63,187.58,16.78468397]
[1753714059019,5.3294092,187.64,187.58,16.78468397]
[1753714059020,11.15502435,187.62,187.58,16.78468397]
[1753714059225,10.45502435,187.62,187.57,16.78468397]
[1753714059431,11.15502435,187.61,187.57,16.78468397]
[1753714059724,0.7,187.6,187.56,16.78468397]
[1753714060109,10.45502435,187.61,187.56,27.23970832]
[1753714060426,11.15502435,187.63,187.57,10.45502435]
[1753714060723,11.15502435,187.63,187.56,16.78468397]
[1753714060724,39.28,187.64,187.6,27.23970832]
[1753714060932,39.28,187.64,187.62,16.78468397]
[1753714061308,10.45502435,187.68,187.62,10.45502435]
[1753714061607,39.28,187.67,187.62,10.45502435]
[1753714061818,39.98,187.67,187.62,10.45502435]
[1753714062204,39.98,187.67,187.64,16.78468397]
[1753714062524,13.3195069,187.7,187.66,27.23970832]
[1753714062525,39.98,187.7,187.66,27.23970832]
[1753714062726,6.02795267,187.69,187.64,10.45502435]
[1753714062899,0.7,187.68,187.64,16.78468397]
[1753714063300,0.7,187.67,187.64,16.78468397]
[1753714063499,5.32795267,187.69,187.64,10.45502435]
[1753714063732,6.02830172,187.68,187.64,10.45502435]
[1753714065137,0.7,187.68,187.65,16.78468397]
[1753714065726,0.7,187.68,187.65,27.23970832]
[1753714066913,44.6077178,187.7,187.65,27.23970832]
[1753714067108,45.3077178,187.7,187.66,10.45502435]
[1753714067701,39.28,187.7,187.67,27.23970832]
[1753714067902,76.46502435,187.73,187.68,10.45502435]
[1753714068105,0.7,187.72,187.67,10.45502435]
[1753714068339,0.7,187.71,187.67,10.45502435]
[1753714068721,6.02737446,187.71,187.67,10.45502435]
[1753714069521,6.02737446,187.71,187.66,16.78468397]
[1753714069522,11.15502435,187.7,187.66,16.78468397]
[1753714069725,10.45502435,187.67,187.62,16.78468397]
[1753714070027,10.45502435,187.65,187.6,10.45502435]
[1753714070232,0.7,187.64,187.61,16.78468397]
[1753714070618,0.7,187.64,187.6,27.23970832]
[1753714071145,6.02938651,187.64,187.6,27.23970832]
[1753714071437,0.7,187.64,187.6,27.23970832]
[1753714071642,0.7,187.63,187.58,27.23970832]
[1753714072212,0.7,187.63,187.58,16.78468397]
[1753714072442,0.7,187.62,187.58,16.78468397]
[1753714072752,6.03030749,187.61,187.58,16.78468397]
[1753714073041,0.7,187.6,187.58,16.78468397]
[1753714073340,0.7,187.6,187.56,16.78468397]
[1753714073543,0.7,187.6,187.56,10.45502435]
[1753714074037,15.78533184,187.61,187.53,26.0]
[1753714074038,10.45502435,187.58,187.55,16.78468397]
[1753714074258,0.7,187.57,187.54,16.78468397]
[1753714074418,11.15502435,187.57,187.52,16.78468397]
[1753714074624,11.15502435,187.57,187.51,10.45502435]
[1753714074942,5.33162721,187.56,187.5,44.65312991]
[1753714075247,5.33162721,187.56,187.52,16.78468397]
[1753714075445,10.45502435,187.57,187.52,16.78468397]
[1753714075662,11.15502435,187.58,187.54,16.78468397]
[1753714075951,11.15502435,187.57,187.54,16.78468397]
[1753714076144,11.15502435,187.57,187.52,10.45502435]
[1753714076454,0.7,187.57,187.52,10.45502435]
[1753714076624,0.7,187.56,187.52,10.45502435]
[1753714076963,0.7,187.55,187.51,27.23970832]
[1753714077252,0.7,187.54,187.51,16.78468397]
[1753714078169,0.7,187.54,187.5,16.84468397]
[1753714078325,11.15502435,187.54,187.5,16.84468397]
[1753714078520,5.3327645,187.52,187.5,0.06]
[1753714078745,6.03254441,187.53,187.5,0.06]
[1753714078945,5.33254441,187.53,187.5,0.06]
[1753714079144,0.7,187.55,187.5,27.29970832]
[1753714079353,147.8,187.64,187.51,10.45502435]
[1753714079536,11.15502435,187.59,187.5,44.65325756]
[1753714079740,11.15502435,187.58,187.53,16.78468397]
[1753714079958,0.7,187.57,187.53,16.78468397]
[1753714080164,0.7,187.57,187.53,10.45502435]
[1753714080369,55.74529392,187.61,187.56,10.45502435]
[1753714080673,26.0,187.62,187.56,10.45502435]
[1753714080674,0.03,187.68,187.61,28.36229671]
[1753714080967,0.03,187.68,187.67,27.23970832]
[1753714081355,5.35821824,187.68,187.67,16.78468397]
[1753714081572,0.74,187.68,187.63,16.78468397]
[1753714081779,0.74,187.68,187.64,10.45502435]
[1753714082183,5.35832193,187.68,187.64,10.45502435]
[1753714082341,11.16502435,187.67,187.6,65.26]
[1753714082675,5.35832193,187.68,187.6,65.26]
[1753714082676,15.78409442,187.65,187.61,16.78468397]
[1753714082882,40.0,187.68,187.62,10.45502435]
[1753714083046,0.74,187.68,187.64,27.23970832]
[1753714083261,0.03,187.68,187.65,10.45502435]
[1753714083477,0.03,187.68,187.66,10.45502435]
[1753714083786,0.03,187.68,187.67,27.23970832]
[1753714084277,0.74,187.68,187.62,16.78468397]
[1753714084487,0.74,187.68,187.66,16.78468397]
[1753714084848,0.03,187.68,187.66,10.45502435]
[1753714085051,0.03,187.68,187.67,10.45502435]
[1753714085359,0.03,187.68,187.67,27.23970832]
[1753714085745,0.03,187.68,187.67,16.78468397]
[1753714087476,0.74,187.68,187.67,16.78468397]
[1753714087776,0.74,187.68,187.65,10.45502435]
[1753714087777,0.03,187.68,187.65,10.45502435]
[1753714087960,0.74,187.68,187.66,10.45502435]
[1753714088164,0.03,187.68,187.66,10.45502435]
[1753714088675,0.03,187.68,187.67,27.23970832]
[1753714089359,0.03,187.68,187.67,16.78468397]
[1753714089561,0.03,187.68,187.67,27.23970832]
[1753714090066,0.03,187.68,187.66,10.45502435]
[1753714090493,0.03,187.68,187.66,27.23970832]
[1753714090659,0.74,187.68,187.66,27.23970832]
[1753714090981,0.71,187.67,187.63,10.45502435]
[1753714091187,5.35821824,187.68,187.66,10.45502435]
[1753714091188,0.03,187.68,187.66,10.45502435]
[1753714091359,0.03,187.68,187.67,27.23970832]
[1753714093085,0.03,187.68,187.67,32.56821047]
[1753714093391,0.03,187.68,187.67,33.10106068]
[1753714093687,0.03,187.72,187.71,16.78468397]
[1753714093857,0.03,187.76,187.75,17.06900711]
[1753714094059,0.03,187.83,187.79,16.78468397]
[1753714094254,0.03,187.83,187.81,10.45502435]
[1753714094465,3.89274222,187.83,187.81,27.23970832]
[1753714094673,3.89274222,187.82,187.81,27.23970832]
[1753714094966,0.03,187.82,187.81,27.23970832]
[1753714095158,3.89274222,187.82,187.81,27.23970832]
[1753714095364,0.03,187.82,187.81,27.23970832]
[1753714096187,3.89274222,187.82,187.81,10.45502435]
[1753714096402,0.03,187.82,187.81,10.45502435]
[1753714096554,0.03,187.82,187.79,39.75250971]
[1753714096555,0.74,187.82,187.79,0.53250971]
[1753714096760,4.56638065,187.81,187.78,10.45502435]
[1753714096968,0.03,187.82,187.8,10.45502435]
[1753714097168,0.03,187.82,187.81,10.45502435]
[1753714098090,0.74,187.82,187.78,10.45502435]
[1753714098276,0.71,187.81,187.78,10.45502435]
[1753714098471,0.71,187.8,187.78,10.45502435]
[1753714098677,0.71,187.79,187.75,10.45502435]
[1753714098875,0.71,187.78,187.74,27.23970832]
[1753714099286,5.32486954,187.8,187.75,10.45502435]
[1753714099589,0.71,187.79,187.75,10.45502435]
[1753714100169,6.03460329,187.81,187.76,10.45502435]
[1753714100500,0.71,187.8,187.75,10.45502435]
[1753714100686,11.16502435,187.8,187.74,27.23970832]
[1753714101000,15.78040511,187.78,187.73,49.65502435]
[1753714101198,0.71,187.79,187.74,10.45502435]
[1753714101199,5.32513552,187.79,187.74,10.45502435]
[1753714101399,0.71,187.8,187.77,10.45502435]
[1753714102197,0.03,187.82,187.77,10.45502435]
[1753714102382,0.03,187.82,187.81,10.45502435]
[1753714103010,0.03,187.82,187.8,10.45502435]
[1753714103199,0.03,187.82,187.81,10.45502435]
[1753714103610,0.03,187.82,187.78,0.53253807]
[1753714103772,0.03,187.82,187.8,10.45502435]
[1753714104181,0.03,187.82,187.81,10.45502435]
[1753714105278,0.03,187.82,187.81,15.77955446]
[1753714105587,0.03,187.82,187.81,32.56423843]
[1753714105988,0.03,187.82,187.81,15.77955446]
[1753714106289,0.03,187.82,187.81,16.31200747]
[1753714107385,0.03,187.82,187.81,55.49200747]
[1753714107698,0.03,187.82,187.81,10.45502435]
[1753714108038,11.19502435,187.82,187.75,5.3261505]
[1753714108304,11.19502435,187.82,187.77,10.45502435]
[1753714108305,0.71,187.81,187.77,10.45502435]
[1753714108619,0.71,187.81,187.78,10.45502435]
[1753714109608,0.71,187.8,187.77,10.45502435]
[1753714109922,0.71,187.79,187.76,10.45502435]
[1753714110074,5.32455451,187.81,187.75,10.45502435]
[1753714110075,0.71,187.78,187.75,10.45502435]
[1753714110575,0.71,187.78,187.72,26.53270828]
[1753714110576,0.71,187.77,187.72,10.45502435]
[1753714110777,0.69,187.76,187.71,10.45502435]
[1753714111004,0.69,187.75,187.71,10.45502435]
[1753714111204,10.45502435,187.77,187.73,10.45502435]
[1753714111205,0.28432314,187.77,187.73,10.45502435]
[1753714111396,0.69,187.77,187.74,10.45502435]
[1753714111797,0.69,187.76,187.73,10.45502435]
[1753714112120,0.69,187.76,187.72,10.45502435]
[1753714112793,0.69,187.76,187.73,10.45502435]
[1753714112990,15.78020439,187.79,187.73,10.45502435]
[1753714113182,0.69,187.8,187.71,5.32736668]
[1753714113183,10.45502435,187.8,187.71,5.32736668]
[1753714113382,10.73934749,187.78,187.73,10.45502435]
[1753714113698,0.69,187.77,187.74,10.45502435]
[1753714114395,0.69,187.8,187.76,10.45502435]
[1753714114588,0.69,187.79,187.76,10.45502435]
[1753714114908,0.69,187.79,187.75,10.45502435]
[1753714115116,0.69,187.78,187.73,10.45502435]
[1753714115405,10.45502435,187.79,187.73,10.45502435]
[1753714115406,0.69,187.77,187.73,10.45502435]
[1753714115606,0.69,187.76,187.72,5.32702427]
[1753714115794,0.69,187.76,187.73,10.45502435]
[1753714116382,0.28432314,187.78,187.73,10.45502435]
[1753714116577,0.28432314,187.78,187.74,10.45502435]
[1753714116578,0.97432314,187.78,187.74,10.45502435]
[1753714117086,0.69,187.78,187.74,10.45502435]
[1753714117280,0.69,187.77,187.73,10.45502435]
[1753714117584,11.14502435,187.76,187.71,10.45502435]
[1753714117882,0.69,187.75,187.68,39.16]
[1753714118083,10.45502435,187.73,187.68,10.45502435]
[1753714118305,15.7820409,187.73,187.68,10.45502435]
[1753714118503,0.69,187.72,187.68,10.45502435]
[1753714118808,0.69,187.71,187.68,10.45502435]
[1753714119013,0.69,187.71,187.67,10.45502435]
[1753714119790,16.4720409,187.73,187.67,10.45502435]
[1753714120217,6.01701655,187.73,187.68,10.45502435]
[1753714120393,0.83216157,187.73,187.69,10.45502435]
[1753714120591,0.83216157,187.73,187.68,5.3281452]
[1753714120592,0.97432314,187.76,187.72,10.45502435]
[1753714120909,0.69,187.75,187.7,10.45502435]
[1753714121231,0.69,187.78,187.73,10.45502435]
[1753714121393,5.32545441,187.78,187.73,10.45502435]
[1753714121588,0.69,187.77,187.73,10.45502435]
[1753714122022,0.69,187.76,187.73,10.45502435]
[1753714122315,0.69,187.76,187.7,36.45502435]
[1753714122316,6.01632133,187.75,187.7,36.45502435]
[1753714122534,0.69,187.74,187.7,36.45502435]
[1753714122686,0.69,187.74,187.71,10.45502435]
[1753714122891,5.61033102,187.76,187.72,10.45502435]
[1753714123199,0.97432314,187.77,187.73,10.45502435]
[1753714123428,15.78016535,187.79,187.74,10.45502435]
[1753714123726,0.69,187.79,187.75,10.45502435]
[1753714124110,0.69,187.79,187.7,26.53276505]
[1753714124438,0.69,187.79,187.75,10.45502435]
[1753714124594,5.35481459,187.8,187.77,10.45502435]
[1753714124919,6.04481459,187.8,187.77,10.45502435]
[1753714125098,11.42934749,187.79,187.73,10.51502435]
[1753714125497,11.42934749,187.79,187.74,10.45502435]
[1753714125697,0.69,187.78,187.74,10.45502435]
[1753714126631,0.69,187.77,187.74,10.45502435]
[1753714126803,5.60948367,187.79,187.75,10.45502435]
[1753714127127,0.03,187.8,187.77,10.45502435]
[1753714127303,3.89029131,187.8,187.79,10.45502435]
[1753714127507,0.03,187.8,187.78,10.45502435]
[1753714128031,0.03,187.8,187.79,10.45502435]
[1753714128220,0.03,187.8,187.75,0.53262316]
[1753714128424,0.03,187.8,187.74,5.32649565]
[1753714128425,0.72,187.8,187.77,10.45502435]
[1753714128722,6.04489769,187.8,187.76,10.45502435]
[1753714128905,5.35489769,187.8,187.76,10.45502435]
[1753714129106,0.69,187.79,187.76,10.45502435]
[1753714129910,0.69,187.79,187.77,10.45502435]
[1753714130233,5.35489769,187.8,187.77,10.45502435]
[1753714130406,0.03,187.8,187.78,10.45502435]
[1753714130794,0.03,187.8,187.79,10.45502435]
[1753714130999,0.03,187.8,187.78,10.45502435]
[1753714131201,0.03,187.8,187.79,10.45502435]
[1753714131426,0.03,187.8,187.78,10.45502435]
[1753714132732,0.69,187.79,187.75,10.45502435]
[1753714133030,0.03,187.8,187.75,10.45502435]
[1753714133031,0.69,187.78,187.75,10.45502435]
[1753714133233,10.48502435,187.8,187.75,10.45502435]
[1753714133394,0.69,187.77,187.73,0.59267991]
[1753714133603,5.32623169,187.75,187.73,0.06]
[1753714133816,5.32547187,187.78,187.73,0.06]
[1753714134021,39.14,187.79,187.76,10.45502435]
[1753714134233,0.69,187.78,187.74,10.45502435]
[1753714134435,0.69,187.77,187.73,0.06]
[1753714134646,0.28432314,187.76,187.73,0.06]
[1753714134951,0.97432314,187.76,187.73,0.06]
[1753714135153,0.69,187.75,187.73,0.06]
[1753714135712,0.28432314,187.76,187.73,0.06]
[1753714135954,0.97432314,187.76,187.73,0.06]
[1753714136417,0.69,187.76,187.73,0.06]
[1753714136916,10.45502435,187.77,187.73,0.06]
[1753714137125,0.69,187.75,187.73,0.06]
[1753714137838,0.69,187.77,187.73,0.06]
[1753714138337,16.06479037,187.78,187.73,0.06]
[1753714138545,0.69,187.76,187.73,0.06]
[1753714139442,5.60976247,187.78,187.73,10.51502435]
[1753714139663,65.40432314,187.79,187.74,10.45502435]
[1753714139820,39.40432314,187.79,187.75,12.98769232]
[1753714140137,39.81,187.79,187.76,12.98769232]
[1753714140349,0.03,187.8,187.78,10.45502435]
[1753714140642,0.03,187.8,187.77,3.06487406]
[1753714140643,0.03,187.8,187.79,13.51984169]
[1753714140843,0.03,187.8,187.79,30.30452566]
[1753714141343,0.03,187.8,187.79,18.84493887]
[1753714141523,0.03,187.8,187.79,35.62962284]
[1753714142220,0.03,187.8,187.79,18.84493887]
[1753714144441,0.03,187.8,187.79,12.98733198]
[1753714144619,0.7,187.8,187.79,10.45502435]
[1753714145129,0.03,187.8,187.79,10.45502435]
[1753714147626,0.03,187.8,187.79,15.78012153]
[1753714148025,0.03,187.8,187.76,6.5483948]
[1753714148337,0.03,187.8,187.79,10.45502435]
[1753714149453,0.03,187.8,187.79,10.98753406]
[1753714149648,0.03,187.8,187.79,72.19731521]
[1753714150449,1e-08,187.8,187.79,72.19731521]
[1753714151320,1e-08,187.8,187.79,161.59731521]
[1753714151518,1e-08,187.8,187.79,161.0648055]
[1753714152148,1e-08,187.8,187.79,71.94912864]
[1753714152353,1e-08,187.8,187.79,72.48163835]
[1753714152852,1e-08,187.8,187.79,72.19731521]
[1753714155950,1e-08,187.82,187.8,16.78468397]
[1753714156159,0.03,187.83,187.8,16.78468397]
[1753714156160,1e-08,187.83,187.82,16.78468397]
[1753714156342,1e-08,187.83,187.82,27.23970832]
[1753714156526,1e-08,187.83,187.82,32.56395493]
[1753714157642,1e-08,187.83,187.82,33.09637959]
[1753714158641,0.03,187.85,187.84,26.0]
[1753714158845,0.03,187.85,187.84,76.04739232]
[1753714159052,0.03,187.85,187.84,92.83207629]
[1753714160961,0.03,187.85,187.84,187.55575601]
[1753714161126,0.03,187.85,187.84,187.02338804]
[1753714162229,0.03,187.85,187.84,105.17870407]
[1753714162553,0.7,187.85,187.84,170.23870407]
[1753714163156,0.7,187.85,187.84,144.23870407]
[1753714164444,0.03,187.85,187.84,144.23870407]
[1753714164761,0.03,187.87,187.86,31.32311295]
[1753714164964,0.03,187.87,187.86,81.37044859]
[1753714165330,0.03,187.87,187.86,98.15513256]
[1753714165542,0.03,187.89,187.88,20.9100487]
[1753714165738,0.03,187.89,187.88,60.48230333]
[1753714166759,0.1,187.92,187.91,26.0]
[1753714166938,0.1,187.92,187.91,76.027194]
[1753714167140,0.1,187.92,187.91,92.81187797]
[1753714167651,0.03,187.93,187.92,16.78468397]
[1753714167849,0.03,187.93,187.92,27.23970832]
[1753714168101,0.1,187.96,187.95,26.0]
[1753714168235,0.1,187.98,187.97,26.0]
[1753714168440,0.1,187.98,187.97,65.57199978]
[1753714168653,0.1,187.98,187.97,76.02702413]
[1753714168854,0.1,187.98,187.97,81.347022]
[1753714169052,0.77,187.98,187.97,42.307022]
[1753714169364,0.77,187.98,187.97,81.347022]
[1753714169661,0.77,187.98,187.97,75.49502435]
[1753714170264,0.77,187.98,187.95,49.49502435]
[1753714170465,3.87136003,187.97,187.95,39.04]
[1753714170678,3.87136003,187.97,187.93,31.3211302]
[1753714170679,0.67,187.96,187.94,49.47502435]
[1753714171343,0.67,187.96,187.94,54.79582355]
[1753714171545,0.1,187.98,187.95,10.98708074]
[1753714171868,0.1,187.98,187.97,10.45502435]
[1753714172171,1e-08,187.98,187.97,38.22673245]
[1753714173075,1e-08,187.98,187.97,33.09170597]
[1753714173466,1e-08,187.98,187.97,16.307022]
[1753714173641,0.72000001,187.98,187.97,36.98702413]
[1753714173843,4.59106341,187.98,187.97,75.47502435]
[1753714174045,4.59106341,187.98,187.97,80.79502222]
[1753714174240,4.59106341,187.98,187.97,75.47502435]
[1753714174665,4.59106341,187.98,187.97,80.79502222]
[1753714174870,0.72000001,187.98,187.97,80.79502222]
[1753714175443,0.72000001,187.98,187.97,36.45502435]
[1753714175646,0.72000001,187.98,187.97,39.02]
[1753714175872,0.72000001,187.98,187.96,49.47502435]
[1753714176075,0.72000001,187.98,187.92,0.53214133]
[1753714176376,10.45502435,187.94,187.89,10.45502435]
[1753714176562,4.15443857,187.97,187.84,5.85604769]
[1753714176563,11.17502435,187.93,187.84,5.85604769]
[1753714176743,10.45502435,187.91,187.85,39.0]
[1753714176946,11.17502435,187.9,187.85,39.0]
[1753714177141,0.72,187.89,187.85,49.45502435]
[1753714177371,0.72,187.89,187.86,10.45502435]
[1753714177569,10.45502435,187.92,187.87,10.45502435]
[1753714177768,0.72,187.91,187.89,10.45502435]
[1753714177971,0.72,187.94,187.9,10.98722232]
[1753714178170,0.72,187.94,187.9,10.45502435]
[1753714178479,31.60432304,187.97,187.9,10.45502435]
[1753714178480,0.72,187.93,187.91,10.45502435]
[1753714178776,0.72,187.93,187.92,10.45502435]
[1753714179154,0.72,187.93,187.91,10.45502435]
[1753714179464,0.72,187.96,187.92,10.45502435]
[1753714179653,0.72,187.96,187.95,10.45502435]
[1753714180260,0.72,187.96,187.94,10.45502435]
[1753714180982,0.72,187.95,187.92,10.45502435]
[1753714181152,0.72,187.95,187.92,39.0]
[1753714181674,0.72,187.95,187.91,10.45502435]
[1753714181851,10.45502435,187.97,187.91,10.45502435]
[1753714181852,0.72,187.94,187.91,10.45502435]
[1753714182057,0.72,187.94,187.92,10.45502435]
[1753714182271,0.72,187.93,187.92,10.45502435]